bitfinex/quotes_BTCUSD_20230115
["timestamp","ask_amount","ask_price","bid_price","bid_amount"]
[1673802882626,1.334069,20902.0,20901.0,0.04]
[1673802883192,1.71463077,20902.0,20901.0,0.04]
[1673802883725,1.334069,20902.0,20901.0,0.04]
[1673802884568,1.77387225,20902.0,20901.0,0.04]
[1673802884831,1.80888833,20902.0,20901.0,0.04]
[1673802885096,1.75288833,20902.0,20901.0,0.04]
[1673802885360,1.84388833,20902.0,20901.0,0.04]
[1673802886625,2.23131133,20902.0,20901.0,0.04]
[1673802886908,2.32231133,20902.0,20901.0,0.04]
[1673802887722,1.84388833,20902.0,20901.0,0.04]
[1673802887980,1.75288833,20902.0,20901.0,0.04]
[1673802888533,0.7624,20902.0,20901.0,0.23072595]
[1673802888794,0.7624,20902.0,20901.0,1.28109388]
[1673802889054,0.6714,20902.0,20901.0,0.98109388]
[1673802889596,0.6714,20902.0,20901.0,1.28119308]
[1673802889855,0.6804,20902.0,20901.0,0.98909388]
[1673802892500,0.6804,20902.0,20901.0,1.28909388]
[1673802893336,0.6804,20902.0,20901.0,0.98909388]
[1673802895296,0.6804,20902.0,20901.0,1.28909388]
[1673802895544,0.6804,20902.0,20901.0,0.98909388]
[1673802895784,0.6804,20902.0,20901.0,0.81064788]
[1673802896036,0.6804,20902.0,20901.0,0.51064788]
[1673802899299,0.6804,20902.0,20901.0,0.51218823]
[1673802899553,0.6804,20902.0,20901.0,0.51064788]
[1673802899802,0.6804,20902.0,20901.0,0.81064788]
[1673802900307,0.6804,20902.0,20901.0,0.51064788]
[1673802901313,0.6804,20902.0,20901.0,0.51017788]
[1673802901556,0.6804,20902.0,20901.0,0.04753]
[1673802901805,1.2463161,20902.0,20901.0,0.04753]
[1673802903324,1.1320161,20902.0,20901.0,0.04753]
[1673802904413,0.6804,20902.0,20901.0,0.04753]
[1673802904692,0.6804,20902.0,20901.0,1.82546707]
[1673802904693,0.009,20902.0,20901.0,1.82546707]
[1673802906249,0.009,20902.0,20901.0,1.70967707]
[1673802908271,0.009,20902.0,20901.0,1.40967707]
[1673802908529,0.12217,20902.0,20901.0,1.38914607]
[1673802909549,0.009,20902.0,20901.0,1.38914607]
[1673802911565,0.009,20902.0,20901.0,1.39029791]
[1673802911820,0.009,20902.0,20901.0,1.38914607]
[1673802912367,0.009,20902.0,20901.0,1.68914607]
[1673802912578,0.009,20902.0,20901.0,1.70967707]
[1673802913831,0.009,20902.0,20901.0,1.68914607]
[1673802914101,0.009,20902.0,20901.0,1.70967707]
[1673802914902,0.009,20902.0,20901.0,1.85301658]
[1673802915389,0.009,20902.0,20901.0,1.68914607]
[1673802915866,0.009,20902.0,20901.0,1.68103244]
[1673802916128,0.009,20902.0,20901.0,1.38064607]
[1673802916366,0.009,20902.0,20901.0,1.68064607]
[1673802917629,0.009,20902.0,20901.0,1.70117707]
[1673802917902,0.009,20902.0,20901.0,1.84451658]
[1673802918150,0.009,20902.0,20901.0,1.82398558]
[1673802918376,0.009,20902.0,20901.0,1.84490295]
[1673802918622,0.009,20902.0,20901.0,1.82437195]
[1673802918878,0.009,20902.0,20901.0,2.1278161]
[1673802919418,0.009,20902.0,20901.0,2.127815]
[1673802919678,0.009,20902.0,20901.0,1.82437195]
[1673802919940,0.009,20902.0,20901.0,1.82398558]
[1673802920453,0.009,20902.0,20901.0,1.82473208]
[1673802920708,0.009,20902.0,20901.0,2.12968765]
[1673802921217,0.009,20902.0,20901.0,2.10990315]
[1673802921944,0.009,20902.0,20901.0,2.13043415]
[1673802922219,0.12217,20902.0,20901.0,0.56709358]
[1673802922538,0.12217,20902.0,20901.0,0.42375407]
[1673802922732,0.12217,20902.0,20901.0,0.42450057]
[1673802923007,0.12217,20902.0,20901.0,0.42375407]
[1673802923233,0.12217,20902.0,20901.0,0.56709358]
[1673802923739,0.12205392,20902.0,20901.0,0.56709358]
[1673802924745,0.57647362,20902.0,20901.0,0.04753]
[1673802926643,0.57647362,20902.0,20901.0,0.19086951]
[1673802926918,0.57647362,20902.0,20901.0,0.04753]
[1673802927433,0.57647362,20902.0,20901.0,0.19198307]
[1673802927695,0.57647362,20902.0,20901.0,0.19086951]
[1673802930957,0.57647362,20902.0,20901.0,0.04753]
[1673802931765,0.89704262,20902.0,20901.0,0.04753]
[1673802932033,1.12564262,20902.0,20901.0,0.04753]
[1673802932287,2.27332892,20902.0,20901.0,0.04753]
[1673802932544,2.94547543,20902.0,20901.0,0.04753]
[1673802932809,0.44775652,20901.0,20898.0,0.14958323]
[1673802933068,0.1143,20899.0,20898.0,0.00624372]
[1673802933330,0.434869,20899.0,20898.0,2.00624372]
[1673802934115,0.1233,20899.0,20898.0,2.00724372]
[1673802934417,0.1233,20899.0,20898.0,0.00724372]
[1673802934692,0.443869,20899.0,20898.0,0.00724372]
[1673802935475,0.84417252,20899.0,20898.0,0.00724372]
[1673802936003,0.83517252,20899.0,20898.0,0.00624372]
[1673802936292,0.84417252,20899.0,20898.0,0.00724372]
[1673802936800,0.70678852,20899.0,20898.0,0.00624372]
[1673802937058,0.52360352,20899.0,20898.0,0.00724372]
[1673802937330,0.51460352,20899.0,20898.0,0.00624372]
[1673802938111,0.83517252,20899.0,20898.0,0.00624372]
[1673802938880,0.84417252,20899.0,20898.0,0.00724372]
[1673802939384,0.83517252,20899.0,20898.0,0.00624372]
[1673802939677,0.84517252,20899.0,20898.0,0.00724372]
[1673802941183,0.83517252,20899.0,20898.0,0.00624372]
[1673802941442,0.83817252,20899.0,20898.0,0.00724372]
[1673802941728,0.83517252,20899.0,20898.0,0.00624372]
[1673802941988,0.90017252,20899.0,20898.0,0.00624372]
[1673802942266,0.77994053,20899.0,20898.0,0.00624372]
[1673802942527,1.05409624,20899.0,20898.0,0.00624372]
[1673802943336,0.93979624,20899.0,20898.0,0.00624372]
[1673802945782,1.571151,20899.0,20898.0,0.00624372]
[1673802946588,1.684551,20899.0,20898.0,0.00624372]
[1673802946841,1.82775574,20899.0,20898.0,0.00624372]
[1673802947090,2.24574038,20899.0,20898.0,0.00624372]
[1673802947921,1.82775574,20899.0,20898.0,0.00624372]
[1673802948142,2.04255767,20899.0,20898.0,0.00624372]
[1673802948436,1.82775574,20899.0,20898.0,0.00624372]
[1673802948929,1.684551,20899.0,20898.0,0.00624372]
[1673802949732,1.82775574,20899.0,20898.0,0.00624372]
[1673802949988,1.98594673,20899.0,20898.0,0.00624372]
[1673802950466,2.67795035,20899.0,20898.0,0.00624372]
[1673802950722,4.46398792,20899.0,20898.0,0.00624372]
[1673802950981,0.00733952,20897.0,20895.0,0.00833083]
[1673802951276,1.489405,20896.0,20895.0,0.00833083]
[1673802951567,2.192705,20896.0,20895.0,0.00833083]
[1673802952856,2.968505,20896.0,20895.0,0.00833083]
[1673802954163,1.66440082,20896.0,20895.0,0.19905678]
[1673802954361,1.52890082,20896.0,20895.0,0.19905678]
[1673802954627,1.43790082,20896.0,20895.0,0.00833083]
[1673802954868,1.52890082,20896.0,20895.0,0.00833083]
[1673802955110,1.43790082,20896.0,20895.0,0.00833083]
[1673802955359,1.52890082,20896.0,20895.0,0.00833083]
[1673802955612,1.91646082,20896.0,20895.0,0.00833083]
[1673802955864,1.81527582,20896.0,20895.0,0.00833083]
[1673802956147,2.13584482,20896.0,20895.0,0.00833083]
[1673802956883,1.72427582,20896.0,20895.0,0.00833083]
[1673802957138,2.10984482,20896.0,20895.0,0.00833083]
[1673802957391,1.98146082,20896.0,20895.0,0.00833083]
[1673802957636,1.78927582,20896.0,20895.0,0.00833083]
[1673802957893,2.10984482,20896.0,20895.0,0.00833083]
[1673802958394,1.78927582,20896.0,20895.0,0.00833083]
[1673802958643,1.63128482,20896.0,20895.0,0.00833083]
[1673802959138,1.31071582,20896.0,20895.0,0.00833083]
[1673802959680,1.24571582,20896.0,20895.0,0.00833083]
[1673802959907,1.33671582,20896.0,20895.0,0.00833083]
[1673802960187,1.24571582,20896.0,20895.0,0.00833083]
[1673802960457,1.31071582,20896.0,20895.0,0.00833083]
[1673802961195,1.24571582,20896.0,20895.0,0.00833083]
[1673802961457,1.33671582,20896.0,20895.0,0.00833083]
[1673802967315,1.24571582,20896.0,20895.0,0.00842534]
[1673802967580,1.24571582,20896.0,20895.0,0.00833083]
[1673802967839,1.31071582,20896.0,20895.0,0.00833083]
[1673802969146,0.882,20896.0,20895.0,0.00833083]
[1673802969712,0.882,20896.0,20895.0,0.0082176]
[1673802970705,0.7683,20896.0,20895.0,0.0082176]
[1673802972717,1.023869,20896.0,20895.0,0.0082176]
[1673802972940,1.114869,20896.0,20895.0,0.0082176]
[1673802973175,1.023869,20896.0,20895.0,0.0082176]
[1673802973428,0.7683,20896.0,20895.0,0.0082176]
[1673802974186,0.7683,20896.0,20895.0,0.37743186]
[1673802974903,0.7033,20896.0,20895.0,0.37743186]
[1673802975149,0.7943,20896.0,20895.0,0.37743186]
[1673802975422,0.7033,20896.0,20895.0,0.37743186]
[1673802975664,0.7943,20896.0,20895.0,0.37743186]
[1673802976405,0.7943,20896.0,20895.0,0.0082176]
[1673802980377,1.114869,20896.0,20895.0,0.0082176]
[1673802981372,0.7943,20896.0,20895.0,0.0082176]
[1673802982123,1.2629137,20896.0,20895.0,0.0082176]
[1673802982372,1.5834827,20896.0,20895.0,0.0082176]
[1673802983095,1.2629137,20896.0,20895.0,0.0082176]
[1673802983344,1.5834827,20896.0,20895.0,0.0082176]
[1673802983819,0.7943,20896.0,20895.0,0.00831659]
[1673802984077,0.7943,20896.0,20895.0,0.36294018]
[1673802984330,0.7943,20896.0,20895.0,0.50627969]
[1673802984577,0.091,20896.0,20895.0,1.37554801]
[1673802984807,0.091,20896.0,20895.0,1.375647]
[1673802985064,0.091,20896.0,20895.0,2.332813]
[1673802987249,0.091,20896.0,20895.0,1.97809042]
[1673802987522,0.091,20896.0,20895.0,2.46131248]
[1673802987786,0.091,20896.0,20895.0,1.97809042]
[1673802989060,0.091,20896.0,20895.0,2.45180076]
[1673802990074,0.091,20896.0,20895.0,1.98659042]
[1673802990324,0.091,20896.0,20895.0,2.21994343]
[1673802990583,0.091,20896.0,20895.0,1.92792482]
[1673802990846,0.091,20896.0,20895.0,1.7955834]
[1673802991063,0.091,20896.0,20895.0,1.56002382]
[1673802991314,0.091,20896.0,20895.0,1.41681143]
[1673802991560,0.7683,20896.0,20895.0,1.41681143]
[1673802993597,0.76819612,20896.0,20895.0,1.41681143]
[1673802994098,0.76819612,20896.0,20895.0,1.41690617]
[1673802994345,0.76819612,20896.0,20895.0,1.56011856]
[1673802994610,0.76819612,20896.0,20895.0,1.86002382]
[1673802994862,0.76819612,20896.0,20895.0,1.88057782]
[1673802996335,0.76819612,20896.0,20895.0,2.17008148]
[1673802996576,0.76819612,20896.0,20895.0,2.14952748]
[1673802997056,0.76819612,20896.0,20895.0,2.17008148]
[1673802997283,0.76819612,20896.0,20895.0,2.02686909]
[1673802997985,0.76819612,20896.0,20895.0,2.31350431]
[1673802998489,0.76819612,20896.0,20895.0,2.14957058]
[1673802998735,0.76819612,20896.0,20895.0,2.17012458]
[1673802999023,0.76819612,20896.0,20895.0,2.00631509]
[1673802999304,0.76819612,20896.0,20895.0,2.02686909]
[1673802999823,0.76819612,20896.0,20895.0,1.72686909]
[1673803000296,0.76819612,20896.0,20895.0,1.77513957]
[1673803000298,0.76819612,20896.0,20895.0,1.56013399]
[1673803000559,0.76819612,20896.0,20895.0,1.41681143]
[1673803000828,0.76819612,20896.0,20895.0,1.0399366]
[1673803001064,1.14164998,20896.0,20895.0,0.5613536]
[1673803001603,1.14164998,20896.0,20895.0,0.0827706]
[1673803007096,1.14164998,20896.0,20895.0,0.0577706]
[1673803011118,1.14164998,20896.0,20895.0,0.5363536]
[1673803011119,0.76819612,20896.0,20895.0,0.5363536]
[1673803011616,0.76819612,20896.0,20895.0,1.01233507]
[1673803012130,0.76819612,20896.0,20895.0,1.63424063]
[1673803012376,0.76819612,20896.0,20895.0,1.65479463]
[1673803012634,0.76819612,20896.0,20895.0,1.95479463]
[1673803012859,0.76819612,20896.0,20895.0,1.65479463]
[1673803013080,0.76819612,20896.0,20895.0,1.63424063]
[1673803013324,0.76819612,20896.0,20895.0,1.93424063]
[1673803014072,0.76819612,20896.0,20895.0,1.63424063]
[1673803015376,0.76819612,20896.0,20895.0,1.49091807]
[1673803016190,0.76819612,20896.0,20895.0,1.63424063]
[1673803017467,0.76819612,20896.0,20895.0,1.65479463]
[1673803017948,0.76819612,20896.0,20895.0,1.63424063]
[1673803018459,0.76819612,20896.0,20895.0,1.49091807]
[1673803018712,0.76819612,20896.0,20895.0,1.01233507]
[1673803020397,0.76819612,20896.0,20895.0,0.5363536]
[1673803023782,0.76819612,20896.0,20895.0,0.5263536]
[1673803024294,0.76819612,20896.0,20895.0,0.478583]
[1673803025531,1.08876512,20896.0,20895.0,0.478583]
[1673803025784,0.76819612,20896.0,20895.0,0.478583]
[1673803026277,0.76819612,20896.0,20894.0,1.02497494]
[1673803026611,0.76819612,20896.0,20894.0,0.88165238]
[1673803026818,0.76819612,20896.0,20895.0,0.020554]
[1673803027332,0.6773,20896.0,20895.0,0.44882977]
[1673803027594,0.6773,20896.0,20895.0,1.09128933]
[1673803027892,0.1260472,20896.0,20895.0,1.86862693]
[1673803028103,0.1260472,20896.0,20895.0,2.41409664]
[1673803028634,0.0360472,20896.0,20895.0,2.41409664]
[1673803028871,0.1270472,20896.0,20895.0,2.55710723]
[1673803029913,0.1270472,20896.0,20895.0,2.19909106]
[1673803030403,0.1270472,20896.0,20895.0,2.41413302]
[1673803030959,0.1270472,20896.0,20895.0,2.19909106]
[1673803031226,0.1270472,20896.0,20895.0,2.41413841]
[1673803033810,0.1270472,20896.0,20895.0,2.41410489]
[1673803034543,0.1270472,20896.0,20895.0,2.19909106]
[1673803035063,0.1270472,20896.0,20895.0,2.41409709]
[1673803035343,0.1270472,20896.0,20895.0,2.22157746]
[1673803035638,0.1270472,20896.0,20895.0,1.93494224]
[1673803035884,0.1270472,20896.0,20895.0,1.77692607]
[1673803036155,0.0360472,20896.0,20895.0,11.20501249]
[1673803036447,0.0450472,20896.0,20895.0,11.84081135]
[1673803036701,0.0360472,20896.0,20895.0,11.84131135]
[1673803036978,0.0440472,20896.0,20895.0,11.84931135]
[1673803037238,0.0360472,20896.0,20895.0,11.84131135]
[1673803037499,0.0440472,20896.0,20895.0,12.84931135]
[1673803038027,0.03527241,20896.0,20895.0,12.84931135]
[1673803038332,0.03527241,20896.0,20895.0,12.96361135]
[1673803039358,0.03527241,20896.0,20895.0,12.53552493]
[1673803039638,0.03506241,20896.0,20895.0,12.53552493]
[1673803039892,0.03506241,20896.0,20895.0,12.96450337]
[1673803041957,0.03506241,20896.0,20895.0,13.65020337]
[1673803042257,0.6925,20902.0,20895.0,13.65020337]
[1673803042481,0.6925,20902.0,20901.0,0.1143]
[1673803042766,0.6925,20902.0,20901.0,2.06090295]
[1673803043026,0.6925,20902.0,20901.0,1.870177]
[1673803043278,0.6925,20902.0,20901.0,1.870169]
[1673803043543,0.7685,20902.0,20901.0,1.872169]
[1673803044594,0.7685,20902.0,20901.0,2.32539471]
[1673803044844,0.7685,20902.0,20901.0,2.30486371]
[1673803045101,0.7685,20902.0,20901.0,2.32539471]
[1673803045358,0.6925,20902.0,20901.0,2.32339471]
[1673803045622,0.7565,20902.0,20901.0,2.32539471]
[1673803045836,0.6925,20902.0,20901.0,2.32339471]
[1673803046129,0.7005,20902.0,20901.0,2.33839471]
[1673803046377,0.6925,20902.0,20901.0,2.32339471]
[1673803046641,0.7005,20902.0,20901.0,2.33839471]
[1673803048719,0.7005,20902.0,20901.0,2.31786371]
[1673803049243,0.7005,20902.0,20901.0,2.33839471]
[1673803050026,0.7005,20902.0,20901.0,2.33963471]
[1673803050552,0.7005,20902.0,20901.0,2.01910371]
[1673803050803,0.7005,20902.0,20901.0,2.31910371]
[1673803051339,0.008,20902.0,20901.0,1.994709]
[1673803051584,0.008,20902.0,20901.0,2.13761961]
[1673803051849,0.008,20902.0,20901.0,2.42196662]
[1673803052137,0.008,20902.0,20901.0,2.68767723]
[1673803052359,0.008,20902.0,20901.0,2.95204637]
[1673803053667,0.008,20902.0,20901.0,2.68767723]
[1673803053987,0.008,20902.0,20901.0,2.39292774]
[1673803054131,0.78557001,20904.0,20901.0,2.37792774]
[1673803054403,0.001,20902.0,20901.0,2.21979674]
[1673803054659,0.78557001,20904.0,20902.0,0.0085]
[1673803054921,0.78557001,20904.0,20903.0,1.5491]
[1673803055187,0.78557001,20904.0,20903.0,2.24222965]
[1673803055441,0.78657001,20904.0,20903.0,2.24222965]
[1673803055698,0.78057001,20904.0,20903.0,2.24222965]
[1673803055983,0.78157001,20904.0,20903.0,2.24222965]
[1673803056241,0.78057001,20904.0,20903.0,2.22170465]
[1673803056527,0.78057001,20904.0,20903.0,2.24222865]
[1673803057051,0.78157001,20904.0,20903.0,2.32822865]
[1673803060986,0.78157001,20904.0,20903.0,2.21432865]
[1673803062293,0.78157001,20904.0,20903.0,2.32862865]
[1673803063336,0.78157001,20904.0,20903.0,2.278124]
[1673803063603,0.78157001,20904.0,20903.0,2.72984228]
[1673803063869,0.78157001,20904.0,20903.0,2.52984228]
[1673803065220,0.78157001,20904.0,20903.0,2.078124]
[1673803065459,0.78157001,20904.0,20903.0,2.42103461]
[1673803065697,0.78157001,20904.0,20903.0,2.278124]
[1673803065951,0.78157001,20904.0,20903.0,2.67718844]
[1673803066203,0.78157001,20904.0,20903.0,2.278124]
[1673803066466,0.78157001,20904.0,20903.0,2.54328821]
[1673803066733,0.78157001,20904.0,20903.0,3.01983539]
[1673803067027,0.51609301,20904.0,20903.0,3.22745644]
[1673803067295,0.00991884,20905.0,20903.0,8.22745644]
[1673803067551,0.00991884,20905.0,20904.0,1.97281958]
[1673803067831,0.00991884,20905.0,20904.0,10.95009458]
[1673803068096,0.00991884,20905.0,20904.0,11.492085]
[1673803069164,0.00991884,20905.0,20904.0,11.27831805]
[1673803069425,0.00991884,20905.0,20904.0,11.58214284]
[1673803071038,0.00991884,20905.0,20904.0,12.20279627]
[1673803071291,0.00991884,20905.0,20904.0,12.25066955]
[1673803071826,0.00991884,20905.0,20904.0,12.2504839]
[1673803072087,0.00391231,20908.0,20905.0,0.11480152]
[1673803072339,0.00391231,20908.0,20907.0,1.52562801]
[1673803072608,0.00391231,20908.0,20907.0,3.03222756]
[1673803072888,0.00391231,20908.0,20907.0,12.19514357]
[1673803073166,0.00391231,20908.0,20907.0,11.63062525]
[1673803073426,0.01235988,20909.0,20907.0,11.98664526]
[1673803073767,0.01235988,20909.0,20908.0,1.69945643]
[1673803074033,0.01235988,20909.0,20908.0,0.81411748]
[1673803074296,0.01235988,20909.0,20908.0,6.513976]
[1673803074552,0.01235988,20909.0,20908.0,6.51578033]
[1673803075314,0.01235988,20909.0,20908.0,6.40168033]
[1673803075847,0.01235988,20909.0,20908.0,6.49368033]
[1673803076099,0.01235988,20909.0,20908.0,6.8550034]
[1673803076854,0.01235988,20909.0,20908.0,6.7407034]
[1673803079169,0.12552988,20909.0,20908.0,6.04857]
[1673803079421,0.81329451,20909.0,20908.0,2.570285]
[1673803079673,1.13386351,20909.0,20908.0,2.570285]
[1673803079939,1.13386351,20909.0,20908.0,0.570285]
[1673803080250,1.00547951,20909.0,20908.0,0.092]
[1673803080471,0.81329451,20909.0,20908.0,0.09216]
[1673803080745,0.81329451,20909.0,20908.0,0.09195456]
[1673803080996,0.81329451,20909.0,20908.0,0.00016]
[1673803081491,0.82129451,20909.0,20908.0,0.00616]
[1673803082519,0.36102988,20909.0,20908.0,0.00616]
[1673803082787,0.73307104,20909.0,20908.0,0.00616]
[1673803083045,0.81388352,20909.0,20908.0,0.00616]
[1673803083804,1.13445252,20909.0,20908.0,0.00616]
[1673803084355,0.58641352,20909.0,20908.0,0.00616]
[1673803085422,0.47321352,20909.0,20908.0,0.30616]
[1673803085636,0.47321352,20909.0,20908.0,0.784445]
[1673803086170,0.02035988,20909.0,20908.0,1.24905527]
[1673803086718,0.02035988,20909.0,20908.0,1.26956027]
[1673803086945,0.02035988,20909.0,20908.0,1.74784527]
[1673803087714,0.02035988,20909.0,20908.0,1.72734027]
[1673803087968,0.02035988,20909.0,20908.0,1.74784527]
[1673803088223,0.02035988,20909.0,20908.0,1.72734027]
[1673803088512,0.02035988,20909.0,20908.0,1.74784527]
[1673803088748,0.02035988,20909.0,20908.0,1.42734027]
[1673803089015,0.13352988,20909.0,20908.0,0.94905527]
[1673803089310,0.02035988,20909.0,20908.0,0.47077027]
[1673803090671,0.73145988,20909.0,20908.0,0.47077027]
[1673803092802,0.73145988,20909.0,20908.0,0.77077027]
[1673803093054,0.73145988,20909.0,20908.0,0.47077027]
[1673803094030,0.73145988,20909.0,20908.0,0.47061027]
[1673803095378,0.73145988,20909.0,20908.0,0.77061027]
[1673803095886,0.73145988,20909.0,20908.0,1.24889527]
[1673803097200,0.73145988,20909.0,20908.0,1.72718027]
[1673803097735,1.2960988,20909.0,20908.0,0.006]
[1673803097988,1.29527095,20909.0,20908.0,1.006]
[1673803098241,1.73013995,20909.0,20908.0,0.006]
[1673803101661,1.40957095,20909.0,20908.0,0.006]
[1673803101928,1.73013995,20909.0,20908.0,0.006]
[1673803102182,1.60175595,20909.0,20908.0,0.006]
[1673803102453,1.29527095,20909.0,20908.0,0.006]
[1673803105542,1.18097095,20909.0,20908.0,0.00629772]
[1673803105789,1.18097095,20909.0,20908.0,0.006]
[1673803111738,1.18097095,20909.0,20908.0,1.006]
[1673803112033,1.18097095,20909.0,20908.0,1.306]
[1673803112539,0.73063203,20909.0,20908.0,1.006]
[1673803115833,0.73063203,20909.0,20908.0,0.006]
[1673803118173,0.87343126,20909.0,20908.0,0.006]
[1673803123477,1.0876301,20909.0,20908.0,0.006]
[1673803123993,0.87343126,20909.0,20908.0,0.006]
[1673803124730,1.0876301,20909.0,20908.0,0.006]
[1673803124991,9.975e-05,20908.0,20905.0,0.00489152]
[1673803125240,0.50162901,20906.0,20905.0,0.00489152]
[1673803125491,2.33396466,20906.0,20905.0,0.00489152]
[1673803125766,3.29054168,20906.0,20905.0,0.00489152]
[1673803126022,3.29055167,20906.0,20905.0,0.00489152]
[1673803126302,1.72819235,20906.0,20905.0,0.00489152]
[1673803126556,1.36977726,20906.0,20905.0,0.00489152]
[1673803126816,0.41320024,20906.0,20905.0,0.00489152]
[1673803127070,0.22101524,20906.0,20905.0,0.00489152]
[1673803127349,0.0778,20906.0,20905.0,0.00489152]
[1673803127610,0.096,20906.0,20905.0,0.00489152]
[1673803127863,0.096,20906.0,20905.0,1.70097901]
[1673803128114,0.192,20906.0,20905.0,1.70097901]
[1673803128363,9.975e-05,20908.0,20905.0,1.70097901]
[1673803128618,9.975e-05,20908.0,20906.0,0.2]
[1673803128868,9.975e-05,20908.0,20906.0,1.456637]
[1673803129905,9.975e-05,20908.0,20906.0,1.156637]
[1673803130391,0.00909975,20908.0,20906.0,0.956637]
[1673803130683,0.00909975,20908.0,20907.0,0.4378317]
[1673803131647,9.975e-05,20908.0,20907.0,0.4378317]
[1673803131980,0.01009975,20908.0,20907.0,0.4378317]
[1673803132685,0.01,20908.0,20907.0,0.4378317]
[1673803133711,0.01,20908.0,20907.0,0.9161397]
[1673803135451,0.01,20908.0,20907.0,0.4378317]
[1673803136933,0.062,20908.0,20907.0,0.4378317]
[1673803138242,0.062,20908.0,20907.0,0.9161397]
[1673803138809,0.062,20908.0,20907.0,1.31496346]
[1673803139047,0.062,20908.0,20907.0,1.61496346]
[1673803139836,0.062,20908.0,20907.0,1.31496346]
[1673803140096,0.062,20908.0,20907.0,0.478308]
[1673803140346,0.51933533,20908.0,20906.0,0.88108831]
[1673803140653,0.51933533,20908.0,20903.0,0.83444786]
[1673803140654,0.320569,20907.0,20903.0,0.83444786]
[1673803140947,0.70060841,20907.0,20904.0,0.47107339]
[1673803141221,0.320569,20906.0,20904.0,0.47107339]
[1673803141479,0.192185,20905.0,20904.0,0.47107339]
[1673803141737,0.70060841,20907.0,20904.0,0.47107339]
[1673803142007,0.62320841,20907.0,20904.0,0.47107339]
[1673803142272,0.47999317,20907.0,20905.0,0.38282235]
[1673803142530,0.35819967,20908.0,20905.0,0.38282235]
[1673803142818,0.14321524,20908.0,20905.0,0.5735483]
[1673803143066,0.14321524,20908.0,20905.0,0.38282235]
[1673803143318,0.01,20907.0,20905.0,0.38282235]
[1673803143573,0.61611711,20908.0,20905.0,0.38282235]
[1673803143829,0.47290187,20908.0,20905.0,0.38282235]
[1673803144346,0.56290187,20908.0,20905.0,0.38282235]
[1673803144612,0.47290187,20908.0,20905.0,0.38282235]
[1673803144913,0.53490187,20908.0,20905.0,0.38282235]
[1673803145123,0.67811711,20908.0,20905.0,0.38282235]
[1673803146761,0.67811711,20908.0,20905.0,0.86117435]
[1673803147289,0.53490187,20908.0,20905.0,0.86117435]
[1673803147583,0.39476196,20907.0,20905.0,0.86117435]
[1673803149121,0.39876196,20907.0,20905.0,0.86117435]
[1673803150493,0.004,20907.0,20905.0,0.86117435]
[1673803151295,0.004,20907.0,20906.0,0.40369596]
[1673803152360,0.004,20907.0,20906.0,0.88202696]
[1673803153133,0.72263203,20909.0,20906.0,1.55108391]
[1673803153391,0.72263203,20909.0,20907.0,0.30006569]
[1673803153643,0.72263203,20909.0,20908.0,0.93470308]
[1673803153891,0.72263203,20909.0,20908.0,0.87496544]
[1673803154161,0.72263203,20909.0,20908.0,1.17496544]
[1673803154404,0.72263203,20909.0,20908.0,1.79566192]
[1673803154405,0.01153203,20909.0,20908.0,1.79566192]
[1673803155945,0.01153203,20909.0,20908.0,1.63273644]
[1673803157240,0.01153203,20909.0,20908.0,1.65324144]
[1673803157501,0.01153203,20909.0,20908.0,1.63273644]
[1673803157772,0.01153203,20909.0,20908.0,1.277075]
[1673803158079,0.01953203,20909.0,20908.0,1.285075]
[1673803158329,0.01941927,20909.0,20908.0,1.84962986]
[1673803158814,0.01941927,20909.0,20908.0,1.97088846]
[1673803159342,0.01941927,20909.0,20908.0,1.64962986]
[1673803159594,0.01941927,20909.0,20908.0,1.71933469]
[1673803159853,0.01941927,20909.0,20908.0,1.69882969]
[1673803160119,0.01941927,20909.0,20908.0,1.69082969]
[1673803160120,0.01141927,20909.0,20908.0,1.69082969]
[1673803160376,0.01941927,20909.0,20908.0,1.69882969]
[1673803160652,0.01141927,20909.0,20908.0,1.71133469]
[1673803160894,0.02041927,20909.0,20908.0,1.69882969]
[1673803161169,0.02041927,20909.0,20908.0,1.71933469]
[1673803161414,0.02041927,20909.0,20908.0,1.69882969]
[1673803161959,0.02041927,20909.0,20908.0,1.71963241]
[1673803162658,0.02041927,20909.0,20908.0,1.69912741]
[1673803163209,0.02041927,20909.0,20908.0,1.71963241]
[1673803164362,0.02041927,20909.0,20908.0,1.69912741]
[1673803165061,0.02041927,20909.0,20908.0,1.39062741]
[1673803167877,0.02041927,20909.0,20908.0,1.69062741]
[1673803169981,0.02041927,20909.0,20908.0,1.71113241]
[1673803170243,0.02041927,20909.0,20908.0,1.69062741]
[1673803171818,0.02041927,20909.0,20908.0,1.71113241]
[1673803172361,0.02041927,20909.0,20908.0,1.85354389]
[1673803172613,0.02041927,20909.0,20908.0,1.85565475]
[1673803173129,0.02041927,20909.0,20908.0,1.69273827]
[1673803173639,0.02041927,20909.0,20908.0,1.71324327]
[1673803173904,0.02041927,20909.0,20908.0,1.39244055]
[1673803174174,0.34098827,20909.0,20908.0,0.486285]
[1673803174669,0.69311927,20909.0,20908.0,0.486285]
[1673803174925,1.12902814,20909.0,20908.0,0.008]
[1673803176470,0.69311927,20909.0,20908.0,0.008]
[1673803177233,0.69311927,20909.0,20908.0,0.486285]
[1673803177558,0.69311927,20909.0,20908.0,0.48658272]
[1673803177717,0.69311927,20909.0,20908.0,0.486285]
[1673803180750,0.69311927,20909.0,20908.0,0.89971926]
[1673803187479,0.69311927,20909.0,20908.0,0.486285]
[1673803188725,0.69311927,20909.0,20908.0,0.008]
[1673803190240,0.14321524,20910.0,20908.0,0.008]
[1673803190504,0.60526914,20911.0,20908.0,0.73992655]
[1673803190786,0.60526914,20911.0,20908.0,1.8872225]
[1673803191028,0.60526914,20911.0,20908.0,1.68849655]
[1673803191285,0.008,20910.0,20909.0,0.19072595]
[1673803191549,0.008,20910.0,20909.0,1.39683748]
[1673803191822,0.01148547,20911.0,20909.0,1.88756343]
[1673803192104,0.01948547,20911.0,20910.0,0.93400767]
[1673803192343,0.01148547,20911.0,20910.0,2.03312977]
[1673803192895,0.01148547,20911.0,20910.0,2.03315927]
[1673803193624,0.01148547,20911.0,20910.0,2.27209204]
[1673803193897,0.01148547,20911.0,20910.0,1.69734229]
[1673803194185,0.01948547,20911.0,20910.0,1.71334229]
[1673803194653,0.01948547,20911.0,20910.0,2.16574758]
[1673803195160,0.01948547,20911.0,20910.0,1.71334229]
[1673803195418,0.01948547,20911.0,20910.0,2.17683712]
[1673803198906,0.01948547,20911.0,20910.0,1.43597483]
[1673803199173,0.01948547,20911.0,20910.0,1.54937483]
[1673803200989,0.01948547,20911.0,20910.0,1.56987183]
[1673803201487,0.01901647,20911.0,20910.0,1.56987183]